fUSD/lending_fUSD_20251225
["ID","MTS","AMOUNT","RATE_DAILY","PERIOD"]
[399716362,1766632264747,-1000.0,0.00038987,30]
[399716363,1766632264757,-150.0,0.00038988,7]
[399716364,1766632264767,-500.0,0.00038988,54]
[399716365,1766632264776,-250.0,0.00038988,54]
[399716366,1766632264786,-151.0,0.00038988,54]
[399716367,1766632264795,-500.0,0.00038988,54]
[399716368,1766632264805,-500.0,0.00038988,54]
[399716369,1766632264815,-500.0,0.00038988,54]
[399716370,1766632264825,-250.0,0.00038988,54]
[399716371,1766632264835,-250.0,0.00038988,54]
[399716372,1766632264844,-250.0,0.00038988,54]
[399716373,1766632264854,-500.0,0.00038988,54]
[399716374,1766632264863,-500.0,0.00038988,54]
[399716375,1766632264873,-200.78240058,0.0003899,2]
[399716376,1766632264883,-300.0,0.00038993,2]
[399716377,1766632264892,-300.251055,0.00038995,93]
[399716378,1766632264902,-1000.0,0.00038996,14]
[399716379,1766632264912,-1000.0,0.00038996,30]
[399716380,1766632264922,-1000.0,0.00038997,30]
[399716381,1766632264932,-151.0,0.00038997,14]
[399716382,1766632264948,-169.34762389,0.00038998,30]
[399716383,1766632264963,-151.0,0.00038998,14]
[399716384,1766632264973,-507.89654476,0.00038998,30]
[399716385,1766632264983,-500.0,0.00038998,30]
[399716386,1766632264993,-250.0,0.00038998,30]
[399716387,1766632265003,-500.0,0.00038998,31]
[399716388,1766632265013,-250.0,0.00038998,31]
[399716389,1766632265022,-151.0,0.00038998,30]
[399716390,1766632265032,-429.318,0.00038998,30]
[399716391,1766632265041,-151.0,0.00038998,31]
[399716392,1766632265051,-550.78768172,0.00038998,31]
[399716393,1766632265061,-500.0,0.00038998,30]
[399716394,1766632265070,-500.0,0.00038998,30]
[399716395,1766632265079,-500.0,0.00038998,31]
[399716396,1766632265089,-500.0,0.00038998,30]
[399716397,1766632265098,-311.1,0.00038998,30]
[399716398,1766632265108,-250.0,0.00038998,30]
[399716399,1766632265117,-500.0,0.00038998,31]
[399716400,1766632265127,-500.0,0.00038998,31]
[399716401,1766632265137,-250.0,0.00038998,31]
[399716402,1766632265148,-250.0,0.00038998,30]
[399716403,1766632265158,-250.0,0.00038998,31]
[399716404,1766632265168,-250.0,0.00038998,30]
[399716405,1766632265177,-250.0,0.00038998,31]
[399716406,1766632265188,-500.0,0.00038998,30]
[399716407,1766632265198,-500.0,0.00038998,31]
[399716408,1766632265208,-500.0,0.00038998,30]
[399716409,1766632265218,-500.0,0.00038998,31]
[399716410,1766632265228,-201.12765536,0.00038998,30]
[399716411,1766632265238,-1000.0,0.00038998,30]
[399716412,1766632265248,-150.0,0.00038999,2]
[399716413,1766632265257,-1027.51657061,0.00038999,30]
[399716414,1766632265267,-151.0,0.00038999,120]
[399716415,1766632265276,-151.0,0.00038999,30]
[399716416,1766632265286,-152.104527,0.00038999,120]
[399716417,1766632265297,-1094.23460435,0.00038999,30]
[399716418,1766632265306,-500.0,0.00038999,120]
[399716419,1766632265316,-500.0,0.00038999,120]
[399716420,1766632265326,-500.0,0.00038999,120]
[399716421,1766632265336,-277.24826677,0.00038999,120]
[399716422,1766632265346,-500.0,0.00038999,31]
[399716423,1766632265356,-500.0,0.00038999,31]
[399716424,1766632265366,-250.0,0.00038999,31]
[399716425,1766632265376,-395.45300292,0.00038999,30]
[399716426,1766632265386,-200.0,0.00038999,31]
[399716427,1766632265396,-151.0,0.00038999,31]
[399716428,1766632265406,-414.0,0.00038999,31]
[399716429,1766632265416,-153.04435224,0.00038999,31]
[399716430,1766632265426,-500.0,0.00038999,31]
[399716431,1766632265444,-500.0,0.00038999,31]
[399716432,1766632265465,-500.0,0.00038999,31]
[399716433,1766632265487,-300.0,0.00038999,31]
[399716434,1766632265507,-250.0,0.00038999,31]
[399716435,1766632265529,-250.0,0.00038999,31]
[399716436,1766632265543,-250.0,0.00038999,31]
[399716437,1766632265554,-500.0,0.00038999,31]
[399716438,1766632265565,-151.0,0.00038999,31]
[399716439,1766632265575,-500.0,0.00038999,31]
[399716440,1766632265586,-681.92,0.00038999,120]
[399716441,1766632265596,-681.92,0.00038999,120]
[399716442,1766632265607,-681.92,0.00038999,120]
[399716443,1766632265618,-681.92,0.00038999,120]
[399716444,1766632265629,-681.92,0.00038999,120]
[399716445,1766632265640,-681.92,0.00038999,120]
[399716446,1766632265650,-682.12911146,0.00038999,120]
[399716447,1766632265661,-520.0,0.00038999,31]
[399716448,1766632265673,-300.0,0.00038999,10]
[399716449,1766632265683,-300.0,0.00038999,10]
[399716450,1766632265693,-300.0,0.00038999,10]
[399716451,1766632265705,-300.0,0.00038999,10]
[399716452,1766632265715,-300.0,0.00038999,10]
[399716453,1766632265724,-300.0,0.00038999,10]
[399716454,1766632265735,-300.0,0.00038999,10]
[399716455,1766632265746,-300.0,0.00038999,10]
[399716456,1766632265756,-306.76265133,0.00038999,10]
[399716457,1766632265766,-666.0,0.00038999,30]
[399716458,1766632265777,-675.6926152,0.00038999,30]
[399716459,1766632265787,-1000.0,0.00038999,2]
[399716460,1766632265796,-1075.08409877,0.00039,31]
[399716461,1766632265806,-876448.27431169,0.00039,2]
[399716462,1766632265975,-356.71,0.00039,2]
[399716463,1766632266218,-363.27825681,0.00013698,2]
[399716464,1766632266228,-151.0,0.00035365,31]
[399716465,1766632266238,-151.0,0.00035365,31]
[399716466,1766632266248,-2609.973585,0.00035365,31]
[399716467,1766632266257,-277.641409,0.00035365,31]
[399716468,1766632266267,-1896.16465451,0.00039,2]
[399716469,1766632266286,-1422.28525192,0.00039,2]
[399716470,1766632266297,-632762.54659716,0.00039,2]
[399716471,1766632266383,-200.17243952,0.00027308,2]
[399716472,1766632266392,-341.65150946,0.00030426,2]
[399716473,1766632266409,-295.2,0.00030426,2]
[399716474,1766632268345,-2500.0,0.00012643,2]
[399716475,1766632268356,-260.0,0.00014147,2]
[399716476,1766632268366,-203.0,0.00014175,2]
[399716477,1766632268376,-1101.0,0.00014204,2]
[399716478,1766632268386,-151.0,0.00016378,2]
[399716479,1766632268396,-4588.94911695,0.00016997,2]
[399716480,1766632268526,273.27330179,0.00012541,2]
[399716481,1766632268573,631.87478283,0.00012541,2]
[399716482,1766632271092,300.0,0.00012592,2]
[399716483,1766632333316,163.5572,0.00012532,2]
[399716484,1766632356211,10000.01,0.00012542,2]
[399716485,1766632356237,10000.01,0.00012542,2]
[399716496,1766632501455,667.76,0.00021918,30]
[399716502,1766632630776,-264.0,0.000124,2]
[399716503,1766632630810,-250.0,0.00012447,2]
[399716504,1766632630844,-300.0,0.00012492,2]
[399716505,1766632630877,-1419.37420156,0.00012493,2]
[399716506,1766632631258,-4164.55631226,0.00012493,2]
[399716507,1766632633554,-10000.01,0.00012493,2]
[399716508,1766632633958,-10000.01,0.00012493,2]
[399716509,1766632635079,5089.61483043,0.00014254,5]
[399716510,1766632636604,-1367.50383894,0.00012493,2]
[399716511,1766632636633,-7265.00232212,0.00012493,2]
[399716512,1766632639623,-387.86246658,0.00012503,2]
[399716513,1766632639657,-258.05785792,0.0001254,2]
[399716514,1766632639685,-214.45081291,0.0001254,2]
[399716515,1766632639713,-157.48194364,0.0001254,2]
[399716516,1766632639742,-191.29131126,0.00012541,2]
[399716517,1766632639771,-592.31234798,0.00012541,2]
[399716518,1766632639799,-300.0,0.00012541,2]
[399716519,1766632639828,-1200.0,0.00012541,2]
[399716520,1766632639856,-150.0,0.00012541,2]
[399716521,1766632639883,-300.0,0.00012541,2]
[399716522,1766632640083,-2497.09651942,0.00012542,2]
[399716523,1766632640118,-10000.01,0.00012542,2]
[399716524,1766632640152,-10000.01,0.00012542,2]
[399716525,1766632642860,-1023.30892095,0.00012393,2]
[399716527,1766632738937,3441.8617256,0.00014254,5]
[399716528,1766632776716,-1081.03893058,0.00012442,2]
[399716529,1766632892939,2542.606,0.00012291,2]
[399716530,1766632893025,165.463,0.00012291,2]
[399716531,1766632931112,-167.14084097,0.00012428,2]
[399716532,1766632950169,682.2059473,0.00012343,2]
[399716533,1766632956419,682.20594729,0.00012368,2]
[399716534,1766632962264,682.20594729,0.00012393,2]
[399716535,1766633021569,7619.11047618,0.00012,2]
[399716536,1766633021593,5380.88952382,0.00012,2]
[399716537,1766633069135,5264.459633,0.00012,10]
[399716538,1766633086170,180.11,9.878e-05,2]
[399716539,1766633086350,180.11,0.00011524,2]
[399716540,1766633161488,2352.69960903,8e-05,2]
[399716541,1766633185725,1600.0,0.00012311,2]
[399716542,1766633204066,1030.00516104,0.0002,30]
[399716543,1766633223270,157.87,0.000123,2]
[399716544,1766633231822,148.33086715,9.8e-05,2]
[399716545,1766633231845,56.66913285,9.8e-05,2]
[399716546,1766633235836,259.1196215,0.000101,2]
[399716547,1766633243474,-300.0,0.00012437,2]
[399716548,1766633243503,-250.0,0.00012438,2]
[399716549,1766633243542,-609.62251398,0.00012441,2]
[399716550,1766633243573,-300.0,0.00012441,2]
[399716551,1766633243604,-1200.0,0.00012441,2]
[399716552,1766633243634,-300.0,0.00012441,2]
[399716553,1766633243664,-150.0,0.00012441,2]
[399716554,1766633243694,-1853.795,0.00012442,2]
[399716555,1766633244042,-380.2395,0.00012442,2]
[399716556,1766633244071,-236.0434,0.00012442,2]
[399716557,1766633244101,-2857.5192,0.00012442,2]
[399716558,1766633244482,-484.45118565,0.00012442,2]
[399716559,1766633244518,-10000.01,0.00012442,2]
[399716560,1766633244557,-10000.01,0.00012442,2]
[399716561,1766633244572,-10000.01,0.00012442,2]
[399716562,1766633244768,-3024.19361435,0.00012442,2]
[399716563,1766633244797,-1601.5865713,0.00012442,2]
[399716564,1766633244833,-748.4496287,0.00012442,2]
[399716565,1766633244864,-10000.01,0.00012442,2]
[399716566,1766633249380,-10000.01,0.00012442,2]
[399716567,1766633249508,-10000.01,0.00012442,2]
[399716568,1766633249629,-10000.01,0.00012442,2]
[399716569,1766633252419,-10000.01,0.00012442,2]
[399716570,1766633252545,-10000.01,0.00012442,2]
[399716571,1766633252644,-10000.01,0.00012442,2]
[399716572,1766633252754,-10000.01,0.00012442,2]
[399716573,1766633253022,-3771.6412,0.00012442,2]
[399716574,1766633265927,1637.0041,0.00012442,2]
[399716575,1766633272185,819.7235,0.00012,2]
[399716576,1766633272212,5110.64611123,0.00012,2]
[399716578,1766633298431,1926.15449536,0.0001,2]
[399716579,1766633300213,390.41223249,7.888e-05,2]
[399716580,1766633309891,2572.79716092,0.0001,2]
[399716581,1766633309915,155.00993443,0.0001,2]
[399716583,1766633312758,267.5015673,0.000107,2]
[399716584,1766633334108,500.0,0.00012441,2]
[399716585,1766633334151,200.5323999,0.00012441,2]
[399716586,1766633334190,283.08509983,0.00012441,2]
[399716587,1766633334229,500.0,0.00012441,2]
[399716588,1766633334267,500.0,0.00012441,2]
[399716589,1766633334402,500.0,0.00012441,2]
[399716590,1766633334487,501.2083211,0.00012441,2]
[399716591,1766633334544,500.0,0.00012441,2]
[399716592,1766633334720,500.0,0.00012441,2]
[399716593,1766633334952,552.78235038,0.00012441,2]
[399716594,1766633335077,500.0,0.00012441,2]
[399716595,1766633335371,500.0,0.00012441,2]
[399716596,1766633335946,500.0,0.00012441,2]
[399716597,1766633336020,500.0,0.00012441,2]
[399716598,1766633336454,500.0,0.00012441,2]
[399716599,1766633336968,500.0,0.00012441,2]
[399716600,1766633337053,500.0,0.00012441,2]
[399716601,1766633337455,500.0,0.00012441,2]
[399716602,1766633338018,500.0,0.00012441,2]
[399716603,1766633338088,500.0,0.00012441,2]
[399716604,1766633338381,39.89032706,0.00012441,2]
[399716605,1766633338408,460.10967294,0.00012441,2]
[399716606,1766633338727,500.0,0.00012441,2]
[399716607,1766633339106,500.0,0.00012441,2]
[399716608,1766633339433,8539.90032706,0.00012442,2]
[399716609,1766633339458,4973.41197294,0.00012442,2]
[399716610,1766633339516,500.0,0.00012441,2]
[399716611,1766633339798,500.0,0.00012441,2]
[399716612,1766633339844,500.0,0.00012441,2]
[399716613,1766633339894,500.0,0.00012441,2]
[399716614,1766633339941,500.0,0.00012441,2]
[399716615,1766633339991,500.0,0.00012441,2]
[399716616,1766633340036,500.0,0.00012441,2]
[399716617,1766633340080,500.0,0.00012441,2]
[399716618,1766633340128,500.0,0.00012441,2]
[399716619,1766633340173,500.0,0.00012441,2]
[399716620,1766633340218,26.59802706,0.00012441,2]
[399716621,1766633340244,188.31131305,0.00012441,2]
[399716622,1766633340285,500.0,0.00012441,2]
[399716623,1766633340324,500.0,0.00012441,2]
[399716624,1766633340363,500.0,0.00012441,2]
[399716625,1766633340402,500.0,0.00012441,2]
[399716626,1766633340444,500.0,0.00012441,2]
[399716627,1766633340502,500.0,0.00012441,2]
[399716628,1766633340550,500.0,0.00012441,2]
[399716629,1766633340589,500.0,0.00012441,2]
[399716630,1766633340634,500.0,0.00012441,2]
[399716631,1766633340679,500.0,0.00012441,2]
[399716632,1766633340720,500.0,0.00012441,2]
[399716633,1766633340771,500.0,0.00012441,2]
[399716634,1766633340811,500.0,0.00012441,2]
[399716635,1766633340857,500.0,0.00012441,2]
[399716636,1766633340903,500.0,0.00012441,2]
[399716637,1766633340951,500.0,0.00012441,2]
[399716638,1766633340991,500.0,0.00012441,2]
[399716639,1766633341032,500.0,0.00012441,2]
[399716640,1766633377503,-177.89287093,0.00012343,2]
[399716641,1766633381149,-658.15154528,0.00012343,2]
[399716642,1766633383801,-459.62267633,0.00012343,2]
[399716643,1766633386594,-200.90675131,0.00012343,2]
[399716644,1766633388730,-387.52475697,0.00012343,2]
[399716649,1766633431745,-300.0,0.00012342,2]
[399716650,1766633431760,-300.0,0.00012342,2]
[399716652,1766633431771,-300.0,0.00012342,2]
[399716653,1766633431780,-1200.0,0.00012342,2]
[399716655,1766633431790,-150.0,0.00012342,2]
[399716657,1766633431800,-300.0,0.00012342,2]
[399716659,1766633431809,-251.0,0.00012342,2]
[399716661,1766633431819,-172246.63341604,0.00012343,2]
[399716663,1766633431853,-8805.25,0.00012343,2]
[399716664,1766633431910,-1807.01762166,0.00012343,2]
[399716665,1766633431921,-357.30360357,0.00012343,2]
[399716666,1766633431965,-1560.74755497,0.00012343,2]
[399716670,1766633437775,-10979.42483391,0.00012343,2]
[399716671,1766633437829,-5974.004,0.00012343,2]
[399716672,1766633437940,-1090.66059968,0.00012343,2]
[399716673,1766633437951,-7523.21552595,0.00012343,2]
[399716674,1766633437997,-787771.6442434,0.00012343,2]
[399716675,1766633438008,-2500.0,0.00012442,2]
[399716676,1766633438018,-1200.0,0.00012442,2]
[399716677,1766633438028,-500.0,0.00012442,2]
[399716678,1766633438038,-500.0,0.00012442,2]
[399716679,1766633438048,-500.0,0.00012442,2]
[399716680,1766633438058,-500.0,0.00012442,2]
[399716681,1766633438068,-500.0,0.00012442,2]
[399716682,1766633438077,-500.0,0.00012442,2]
[399716683,1766633438087,-500.0,0.00012442,2]
[399716684,1766633438097,-500.0,0.00012442,2]
[399716685,1766633438107,-500.0,0.00012442,2]
[399716686,1766633438117,-500.0,0.00012442,2]
[399716687,1766633438127,-500.0,0.00012442,2]
[399716688,1766633438137,-500.0,0.00012442,2]
[399716689,1766633438147,-500.0,0.00012442,2]
[399716690,1766633438157,-500.0,0.00012442,2]
[399716691,1766633438167,-500.0,0.00012442,2]
[399716692,1766633438177,-500.0,0.00012442,2]
[399716693,1766633438187,-500.0,0.00012442,2]
[399716694,1766633438197,-500.0,0.00012442,2]
[399716695,1766633438211,-500.0,0.00012442,2]
[399716696,1766633438221,-500.0,0.00012442,2]
[399716697,1766633438231,-500.0,0.00012442,2]
[399716698,1766633438241,-500.0,0.00012442,2]
[399716699,1766633438251,-500.0,0.00012442,2]
[399716700,1766633438260,-500.0,0.00012442,2]
[399716701,1766633438271,-500.0,0.00012442,2]
[399716702,1766633438280,-500.0,0.00012442,2]
[399716703,1766633438291,-500.0,0.00012442,2]
[399716704,1766633438301,-500.0,0.00012442,2]
[399716705,1766633438311,-500.0,0.00012442,2]
[399716706,1766633438322,-500.0,0.00012442,2]
[399716707,1766633438331,-500.0,0.00012442,2]
[399716708,1766633438341,-500.0,0.00012442,2]
[399716710,1766633438351,-500.0,0.00012442,2]
[399716711,1766633438360,-500.0,0.00012442,2]
[399716713,1766633438372,-372.63481686,0.00012442,2]
[399716714,1766633438381,-500.0,0.00012442,2]
[399716716,1766633438391,-500.0,0.00012442,2]
[399716719,1766633438401,-500.0,0.00012442,2]
[399716721,1766633438411,-500.0,0.00012442,2]
[399716723,1766633438420,-32796.07991404,0.00012443,2]
[399716724,1766633438430,-1404.07908159,0.00012443,2]
[399716726,1766633438440,-774.91122039,0.00012443,2]
[399716728,1766633438450,-1597.77382672,0.00012532,2]
[399716729,1766633438459,-151.0,0.00012534,2]
[399716730,1766633438469,-151.0,0.00012534,2]
[399716731,1766633438479,-151.0,0.00012534,2]
[399716732,1766633438489,-151.0,0.00012534,2]
[399716733,1766633438499,-151.0,0.00012534,2]
[399716734,1766633438509,-151.0,0.00012534,2]
[399716735,1766633438520,-151.0,0.00012534,2]
[399716736,1766633438530,-151.0,0.00012534,2]
[399716737,1766633438542,-151.0,0.00012534,2]
[399716738,1766633438552,-151.0,0.00012534,2]
[399716739,1766633438562,-151.0,0.00012534,2]
[399716740,1766633438577,-151.0,0.00012534,2]
[399716741,1766633438588,-151.0,0.00012534,2]
[399716742,1766633438598,-151.0,0.00012534,2]
[399716743,1766633438608,-151.0,0.00012534,2]
[399716744,1766633438619,-151.0,0.00012534,2]
[399716745,1766633438629,-151.0,0.00012534,2]
[399716746,1766633438639,-151.0,0.00012534,2]
[399716747,1766633438649,-151.0,0.00012534,2]
[399716748,1766633438659,-151.0,0.00012534,2]
[399716749,1766633438669,-358.16779098,0.00012541,2]
[399716750,1766633438679,-544.14877542,0.00012541,2]
[399716751,1766633438689,-500.0,0.00012541,2]
[399716752,1766633438699,-279.21023116,0.00012543,2]
[399716753,1766633438709,-3224.69,0.00012548,2]
[399716754,1766633438719,-6257.3,0.00012586,2]
[399716755,1766633438730,-1000.0,0.00012643,2]
[399716756,1766633438741,-150.0,0.00012809,2]
[399716757,1766633438751,-200.78240058,0.00012873,2]
[399716758,1766633438761,-301535.35573966,0.00012883,2]
[399716759,1766633438771,-267.93,0.00012912,2]
[399716760,1766633438780,-4414.32695484,0.00013,2]
[399716761,1766633438790,-5330.63924216,0.0001305,2]
[399716762,1766633438801,-1404.07908155,0.0001308,2]
[399716763,1766633438811,-1000.0,0.00013143,2]
[399716764,1766633438820,-1000.0,0.00013143,2]
[399716765,1766633438830,-180.11,0.0001317,2]
[399716766,1766633438841,-350.0,0.00013227,2]
[399716767,1766633438852,-1000.0,0.00013231,2]
[399716768,1766633438862,-1792.0,0.00013254,2]
[399716769,1766633438872,-1966.0,0.0001328,2]
[399716770,1766633438883,-255.0,0.00013428,2]
[399716771,1766633438893,-368.2121661,0.00013435,2]
[399716772,1766633438903,-741.09410809,0.00013535,2]
[399716773,1766633438913,-774.91122039,0.00013537,2]
[399716774,1766633438928,-420.0,0.00013544,2]
[399716775,1766633438938,-420.0,0.00013544,2]
[399716776,1766633438948,-420.0,0.00013544,2]
[399716777,1766633438959,-1943.8466,0.00013562,2]
[399716778,1766633438969,-1680.0,0.00013576,2]
[399716779,1766633438979,-300.0,0.00013576,2]
[399716780,1766633438990,-587.66766213,0.00013578,2]
[399716781,1766633439001,-632.0,0.00013627,2]
[399716782,1766633439012,-1680.0,0.00013652,2]
[399716783,1766633439022,-300.0,0.00013678,2]
[399716784,1766633439032,-300.0,0.00013678,2]
[399716785,1766633439042,-250.0,0.00013678,2]
[399716786,1766633439053,-300.0,0.00013686,2]
[399716787,1766633439063,-250.0,0.00013686,2]
[399716788,1766633439074,-207.4920134,0.00013686,2]
[399716789,1766633439084,-300.0,0.00013686,2]
[399716790,1766633439094,-250.0,0.00013686,2]
[399716791,1766633439104,-500.0,0.00013698,2]
[399716792,1766633439114,-500.0,0.00013698,2]
[399716793,1766633439125,-500.0,0.00013698,2]
[399716794,1766633439135,-500.0,0.00013698,2]
[399716795,1766633439145,-500.0,0.00013698,2]
[399716796,1766633439155,-500.0,0.00013698,2]
[399716797,1766633439165,-500.0,0.00013698,2]
[399716798,1766633439175,-500.0,0.00013698,2]
[399716799,1766633439185,-500.0,0.00013698,2]
[399716800,1766633439196,-500.0,0.00013698,2]
[399716801,1766633439206,-500.0,0.00013698,2]
[399716802,1766633439216,-500.0,0.00013698,2]
[399716803,1766633439227,-500.0,0.00013698,2]
[399716804,1766633439236,-500.0,0.00013698,2]
[399716805,1766633439246,-500.0,0.00013698,2]
[399716806,1766633439256,-500.0,0.00013698,2]
[399716807,1766633439267,-500.0,0.00013698,2]
[399716808,1766633439277,-500.0,0.00013698,2]
[399716809,1766633439291,-500.0,0.00013698,2]
[399716810,1766633439301,-500.0,0.00013698,2]
[399716811,1766633439311,-500.0,0.00013698,2]
[399716812,1766633439322,-500.0,0.00013698,2]
[399716813,1766633439332,-284.02576832,0.00013698,2]
[399716814,1766633439342,-500.0,0.00013698,2]
[399716815,1766633439352,-500.0,0.00013698,2]
[399716816,1766633439363,-500.0,0.00013698,2]
[399716817,1766633439372,-500.0,0.00013698,2]
[399716818,1766633439382,-500.0,0.00013698,2]
[399716819,1766633439391,-500.0,0.00013698,2]
[399716820,1766633439401,-500.0,0.00013698,2]
[399716821,1766633439410,-500.0,0.00013698,2]
[399716822,1766633439420,-500.0,0.00013698,2]
[399716823,1766633439430,-500.0,0.00013698,2]
[399716824,1766633439439,-400.99816969,0.00013698,2]
[399716825,1766633439449,-500.0,0.00013698,2]
[399716826,1766633439459,-500.0,0.00013698,2]
[399716827,1766633439469,-500.0,0.00013698,2]
[399716828,1766633439483,-510.60428211,0.00013698,2]
[399716829,1766633439492,-500.0,0.00013698,2]
[399716830,1766633439502,-506.80328525,0.00013698,2]
[399716831,1766633439512,-500.0,0.00013698,2]
[399716832,1766633439523,-500.0,0.00013698,2]
[399716833,1766633439533,-500.0,0.00013698,2]
[399716834,1766633439547,-500.0,0.00013698,2]
[399716835,1766633439557,-1862.4,0.00013698,2]
[399716836,1766633439567,-500.0,0.00013698,2]
[399716837,1766633439578,-500.0,0.00013698,2]
[399716838,1766633439588,-500.0,0.00013698,2]
[399716839,1766633439598,-500.0,0.00013698,2]
[399716840,1766633439607,-500.0,0.00013698,2]
[399716841,1766633439619,-500.0,0.00013698,2]
[399716842,1766633439629,-500.0,0.00013698,2]
[399716847,1766633439875,-500.0,0.00013698,2]
[399716848,1766633439886,-500.0,0.00013698,2]
[399716849,1766633439896,-500.0,0.00013698,2]
[399716850,1766633439906,-500.0,0.00013698,2]
[399716851,1766633439916,-500.0,0.00013698,2]
[399716852,1766633439926,-500.61215615,0.00013698,2]
[399716853,1766633439936,-500.0,0.00013698,2]
[399716854,1766633439946,-602.90869364,0.00013698,2]
[399716855,1766633439955,-500.0,0.00013698,2]
[399716856,1766633439965,-500.0,0.00013698,2]
[399716857,1766633439974,-500.0,0.00013698,2]
[399716858,1766633439985,-500.0,0.00013698,2]
[399716859,1766633440011,-500.0,0.00013698,2]
[399716860,1766633440022,-500.0,0.00013698,2]
[399716861,1766633440032,-500.0,0.00013698,2]
[399716862,1766633440042,-500.0,0.00013698,2]
[399716863,1766633440052,-500.0,0.00013698,2]
[399716864,1766633440062,-500.0,0.00013698,2]
[399716865,1766633440072,-500.0,0.00013698,2]
[399716866,1766633440083,-500.0,0.00013698,2]
[399716867,1766633440093,-500.0,0.00013698,2]
[399716868,1766633440103,-500.0,0.00013698,2]
[399716869,1766633440114,-500.0,0.00013698,2]
[399716870,1766633440124,-500.0,0.00013698,2]
[399716871,1766633440135,-500.0,0.00013698,2]
[399716872,1766633440145,-500.93767217,0.00013698,2]
[399716873,1766633440155,-309.57082373,0.00013698,2]
[399716874,1766633440166,-500.0,0.00013698,2]
[399716875,1766633440176,-500.0,0.00013698,2]
[399716876,1766633440186,-500.0,0.00013698,2]
[399716877,1766633440196,-500.0,0.00013698,2]
[399716878,1766633440206,-500.0,0.00013698,2]
[399716879,1766633440216,-500.0,0.00013698,2]
[399716880,1766633440226,-500.0,0.00013698,2]
[399716881,1766633440237,-500.0,0.00013698,2]
[399716882,1766633440246,-501.405217,0.00013698,2]
[399716883,1766633440257,-681.92,0.00013698,2]
[399716884,1766633440267,-681.92,0.00013698,2]
[399716885,1766633440277,-681.92,0.00013698,2]
[399716886,1766633440287,-681.92,0.00013698,2]
[399716888,1766633440297,-500.0,0.00013698,2]
[399716889,1766633440307,-500.0,0.00013698,2]
[399716891,1766633440317,-177.33477516,0.00013698,2]
[399716892,1766633440327,-500.0,0.00013698,2]
[399716893,1766633440336,-500.0,0.00013698,2]
[399716894,1766633440346,-500.0,0.00013698,2]
[399716895,1766633440362,-500.0,0.00013698,2]
[399716896,1766633440372,-500.0,0.00013698,2]
[399716897,1766633440382,-500.0,0.00013698,2]
[399716898,1766633440392,-500.0,0.00013698,2]
[399716899,1766633440402,-505.82761911,0.00013698,2]
[399716900,1766633440412,-523.3228728,0.00013698,2]
[399716901,1766633440423,-500.0,0.00013698,2]
[399716902,1766633440433,-500.0,0.00013698,2]
[399716903,1766633440443,-524.26514358,0.00013698,2]
[399716904,1766633440453,-500.0,0.00013698,2]
[399716905,1766633440463,-500.0,0.00013698,2]
[399716906,1766633440473,-500.0,0.00013698,2]
[399716907,1766633440482,-500.0,0.00013698,2]